fUST/lending_fUST_20240927
["ID","MTS","AMOUNT","RATE_DAILY","PERIOD"]
[339231826,1727383841204,-796.58,0.00021999,25]
[339231827,1727383841213,-796.58,0.00021999,25]
[339231828,1727383841222,-796.58,0.00021999,25]
[339231829,1727383841232,-796.58,0.00021999,25]
[339231830,1727383841241,-796.58,0.00021999,25]
[339231831,1727383841250,-796.58,0.00021999,25]
[339231832,1727383841259,-796.58,0.00021999,25]
[339231833,1727383841270,-796.58,0.00021999,25]
[339231834,1727383841279,-796.58,0.00021999,25]
[339231835,1727383841289,-796.78161103,0.00021999,25]
[339231836,1727383841298,-535.14646016,0.00021999,120]
[339231837,1727383841308,-500.0,0.00021999,120]
[339231838,1727383841317,-506.26578978,0.00021999,120]
[339231839,1727383841327,-503.59862527,0.00021999,120]
[339231840,1727383841337,-500.0,0.00021999,120]
[339231841,1727383841346,-506.56726671,0.00021999,120]
[339231842,1727383841356,-372.3749925,0.00021999,120]
[339231843,1727383841365,-500.0,0.00021999,120]
[339231844,1727383841375,-500.78719108,0.00021999,120]
[339231845,1727383841385,-504.48632035,0.00021999,120]
[339231846,1727383841394,-500.0,0.00021999,120]
[339231847,1727383841404,-500.0,0.00021999,120]
[339231848,1727383841413,-277.44618634,0.00021999,120]
[339231849,1727383841422,-151.0,0.00021999,7]
[339231850,1727383841434,-151.0,0.00021999,7]
[339231851,1727383841443,-603.53119924,0.00021999,120]
[339231852,1727383841453,-151.0,0.00021999,7]
[339231853,1727383841462,-151.0,0.00021999,7]
[339231854,1727383841471,-151.0,0.00021999,7]
[339231855,1727383841481,-500.0,0.00021999,120]
[339231856,1727383841490,-500.0,0.00021999,120]
[339231857,1727383841500,-427.57,0.00021999,120]
[339231858,1727383841509,-503.9571007,0.00021999,120]
[339231859,1727383841518,-500.0,0.00021999,120]
[339231860,1727383841528,-506.46726146,0.00021999,120]
[339231861,1727383841537,-507.87431314,0.00021999,120]
[339231862,1727383841547,-586.00331074,0.00021999,120]
[339231863,1727383841557,-512.72377837,0.00021999,120]
[339231864,1727383841566,-2403.27,0.00021999,5]
[339231865,1727383841576,-500.0,0.00021999,120]
[339231866,1727383841586,-2403.27,0.00021999,5]
[339231867,1727383841596,-508.97853094,0.00021999,120]
[339231868,1727383841606,-515.44441386,0.00021999,120]
[339231869,1727383841615,-2403.27,0.00021999,5]
[339231870,1727383841624,-2403.27,0.00021999,5]
[339231871,1727383841634,-2403.27,0.00021999,5]
[339231872,1727383841643,-2403.27,0.00021999,5]
[339231873,1727383841652,-2403.27,0.00021999,5]
[339231874,1727383841662,-2403.27,0.00021999,5]
[339231875,1727383841671,-507.83377196,0.00021999,120]
[339231876,1727383841684,-2403.27,0.00021999,5]
[339231877,1727383841694,-2403.27,0.00021999,5]
[339231878,1727383841703,-2403.27,0.00021999,5]
[339231879,1727383841713,-2403.27,0.00021999,5]
[339231880,1727383841722,-2403.27,0.00021999,5]
[339231881,1727383841732,-2403.27,0.00021999,5]
[339231882,1727383841742,-2403.27,0.00021999,5]
[339231883,1727383841751,-2403.27,0.00021999,5]
[339231884,1727383841761,-2403.27,0.00021999,5]
[339231885,1727383841770,-2403.27,0.00021999,5]
[339231886,1727383841779,-2403.27,0.00021999,5]
[339231887,1727383841789,-2403.27,0.00021999,5]
[339231888,1727383841798,-2403.27,0.00021999,5]
[339231889,1727383841807,-2403.27,0.00021999,5]
[339231890,1727383841817,-501.56942968,0.00021999,120]
[339231891,1727383841828,-2403.27,0.00021999,5]
[339231892,1727383841840,-2403.31571298,0.00021999,5]
[339231893,1727383841850,-503.63596924,0.00021999,120]
[339231894,1727383841859,-563.96058372,0.00021999,120]
[339231895,1727383841870,-500.0,0.00021999,30]
[339231896,1727383841880,-500.0,0.00021999,30]
[339231897,1727383841890,-641.6839944,0.00021999,30]
[339231898,1727383841899,-500.0,0.00021999,10]
[339231899,1727383841910,-502.0307489,0.00021999,120]
[339231900,1727383841920,-500.0,0.00021999,10]
[339231901,1727383841931,-500.0,0.00021999,10]
[339231902,1727383841941,-500.0,0.00021999,10]
[339231903,1727383841950,-503.3835725,0.00021999,120]
[339231904,1727383841960,-500.0,0.00021999,10]
[339231905,1727383841969,-375.0,0.00021999,2]
[339231906,1727383841979,-500.0,0.00021999,10]
[339231907,1727383841988,-500.0,0.00021999,10]
[339231908,1727383841997,-500.0,0.00021999,10]
[339231909,1727383842007,-500.0,0.00021999,10]
[339231910,1727383842016,-589.7915112,0.00021999,10]
[339231911,1727383842026,-345.71589652,0.00021999,120]
[339231912,1727383842069,-154.28410348,0.00021999,120]
[339231913,1727383842078,-508.88685302,0.00021999,120]
[339231914,1727383842088,-505.45410384,0.00021999,120]
[339231915,1727383842097,-500.0,0.00021999,120]
[339231916,1727383842106,-163.87137728,0.00021999,120]
[339231917,1727383842115,-502.90530961,0.00021999,120]
[339231918,1727383842125,-547.26700307,0.00021999,120]
[339231919,1727383842134,-500.0,0.00021999,120]
[339231920,1727383842144,-500.0,0.00021999,120]
[339231921,1727383842153,-505.19458745,0.00021999,120]
[339231922,1727383842163,-505.26937943,0.00021999,120]
[339231923,1727383842172,-610.0,0.00021999,120]
[339231924,1727383842184,-500.0,0.00021999,120]
[339231925,1727383842193,-506.41081867,0.00021999,120]
[339231926,1727383842202,-555.08255071,0.00021999,120]
[339231927,1727383842212,-504.06259911,0.00021999,120]
[339231928,1727383842221,-500.0,0.00021999,120]
[339231929,1727383842230,-503.0,0.00021999,120]
[339231930,1727383842240,-500.0,0.00021999,120]
[339231931,1727383842249,-505.27325616,0.00021999,120]
[339231932,1727383842258,-504.33733776,0.00021999,120]
[339231933,1727383842267,-500.0,0.00021999,120]
[339231934,1727383842277,-502.1774082,0.00021999,120]
[339231935,1727383842286,-502.45037235,0.00021999,120]
[339231936,1727383842296,-500.0,0.00021999,120]
[339231937,1727383842305,-502.97389559,0.00021999,120]
[339231938,1727383842314,-500.0,0.00021999,120]
[339231939,1727383842324,-504.55886681,0.00021999,120]
[339231940,1727383842333,-500.0,0.00021999,30]
[339231941,1727383842343,-500.0,0.00021999,30]
[339231942,1727383842353,-500.0,0.00021999,30]
[339231943,1727383842363,-500.0,0.00021999,30]
[339231944,1727383842372,-500.0,0.00021999,30]
[339231945,1727383842382,-500.0,0.00021999,30]
[339231947,1727383842392,-500.0,0.00021999,30]
[339231949,1727383842401,-500.0,0.00021999,30]
[339231951,1727383842411,-500.0,0.00021999,30]
[339231953,1727383842420,-180.45878391,0.00021999,30]
[339231955,1727383842432,-500.0,0.00021999,2]
[339231956,1727383842441,-500.0,0.00021999,2]
[339231957,1727383842450,-500.0,0.00021999,120]
[339231958,1727383842459,-500.0,0.00021999,2]
[339231959,1727383842469,-256.48874465,0.00021999,120]
[339231960,1727383842478,-500.0,0.00021999,2]
[339231961,1727383842488,-500.0,0.00021999,2]
[339231962,1727383842497,-500.0,0.00021999,2]
[339231963,1727383842506,-500.0,0.00021999,2]
[339231964,1727383842515,-500.0,0.00021999,2]
[339231965,1727383842524,-500.0,0.00021999,2]
[339231967,1727383842533,-500.0,0.00021999,2]
[339231968,1727383842542,-500.0,0.00021999,2]
[339231970,1727383842551,-500.0,0.00021999,2]
[339231971,1727383842561,-500.0,0.00021999,2]
[339231973,1727383842570,-500.0,0.00021999,2]
[339231974,1727383842579,-253.95,0.00021999,2]
[339231977,1727383842588,-500.0,0.00021999,120]
[339231979,1727383842598,-500.0,0.00021999,120]
[339231980,1727383842607,-506.88725659,0.00021999,120]
[339231982,1727383842617,-517.16527131,0.00021999,120]
[339231983,1727383842626,-500.0,0.00021999,120]
[339231984,1727383842636,-503.88113662,0.00021999,120]
[339231985,1727383842645,-500.0,0.00021999,120]
[339231986,1727383842655,-541.66430848,0.00021999,120]
[339231987,1727383842664,-500.0,0.00021999,120]
[339231988,1727383842674,-516.81643273,0.00021999,120]
[339231989,1727383842685,-502.54731216,0.00021999,120]
[339231991,1727383842693,-500.0,0.00021999,120]
[339231992,1727383842703,-500.0,0.00021999,120]
[339231993,1727383842712,-649.211943,0.00021999,120]
[339231994,1727383842721,-500.0,0.00021999,120]
[339231995,1727383842730,-393.22196267,0.00021999,120]
[339231996,1727383842739,-518.36715894,0.00021999,120]
[339231998,1727383842749,-500.0,0.00021999,120]
[339231999,1727383842759,-500.0,0.00021999,120]
[339232000,1727383842769,-500.0,0.00021999,120]
[339232001,1727383842778,-312.23,0.00021999,120]
[339232002,1727383842787,-500.0,0.00021999,120]
[339232003,1727383842797,-500.0,0.00021999,120]
[339232005,1727383842806,-505.18869353,0.00021999,120]
[339232007,1727383842815,-505.84105672,0.00021999,120]
[339232008,1727383842826,-508.66414654,0.00021999,120]
[339232010,1727383842838,-500.0,0.00021999,120]
[339232011,1727383842848,-500.0,0.00021999,120]
[339232012,1727383842857,-500.0,0.00021999,120]
[339232013,1727383842866,-263.37469876,0.00021999,120]
[339232014,1727383842877,-500.0,0.00021999,120]
[339232015,1727383842886,-500.0,0.00021999,30]
[339232016,1727383842896,-500.0,0.00021999,120]
[339232017,1727383842906,-504.82000243,0.00021999,120]
[339232018,1727383842915,-986.52,0.00021999,30]
[339232019,1727383842924,-500.0,0.00021999,120]
[339232020,1727383842934,-986.52,0.00021999,30]
[339232021,1727383842943,-500.0,0.00021999,120]
[339232022,1727383842952,-986.52,0.00021999,30]
[339232023,1727383842961,-157.99604474,0.00021999,120]
[339232024,1727383842971,-986.52,0.00021999,30]
[339232025,1727383842980,-986.52,0.00021999,30]
[339232026,1727383842989,-986.52,0.00021999,30]
[339232027,1727383842998,-986.52,0.00021999,30]
[339232029,1727383843007,-151.0,0.00021999,7]
[339232030,1727383843017,-986.52,0.00021999,30]
[339232031,1727383843026,-151.0,0.00021999,7]
[339232033,1727383843035,-986.52,0.00021999,30]
[339232034,1727383843045,-986.52,0.00021999,30]
[339232035,1727383843054,-986.52,0.00021999,30]
[339232036,1727383843064,-986.52,0.00021999,30]
[339232037,1727383843073,-516.07363785,0.00021999,120]
[339232038,1727383843082,-986.52,0.00021999,30]
[339232040,1727383843091,-986.52,0.00021999,30]
[339232041,1727383843100,-986.52,0.00021999,30]
[339232042,1727383843109,-500.0,0.00021999,120]
[339232043,1727383843119,-986.52,0.00021999,30]
[339232044,1727383843128,-510.59149763,0.00021999,120]
[339232045,1727383843137,-986.52,0.00021999,30]
[339232046,1727383843146,-986.52,0.00021999,30]
[339232047,1727383843156,-986.52,0.00021999,30]
[339232048,1727383843165,-986.52,0.00021999,30]
[339232049,1727383843174,-986.52,0.00021999,30]
[339232050,1727383843185,-986.52,0.00021999,30]
[339232051,1727383843194,-986.52,0.00021999,30]
[339232052,1727383843203,-986.74096066,0.00021999,30]
[339232053,1727383843212,-500.0,0.00021999,120]
[339232054,1727383843222,-500.0,0.00021999,120]
[339232055,1727383843231,-500.0,0.00021999,120]
[339232056,1727383843240,-507.30503543,0.00021999,120]
[339232057,1727383843249,-817.6377036,0.00021999,5]
[339232058,1727383843259,-500.0,0.00021999,120]
[339232059,1727383843268,-500.0,0.00021999,120]
[339232060,1727383843278,-500.0,0.00021999,120]
[339232061,1727383843287,-500.0,0.00021999,120]
[339232062,1727383843296,-597.79,0.00021999,120]
[339232063,1727383843305,-500.0,0.00021999,120]
[339232064,1727383843316,-631.45807621,0.00021999,120]
[339232065,1727383843325,-500.0,0.00021999,120]
[339232066,1727383843334,-500.0,0.00021999,120]
[339232067,1727383843343,-500.0,0.00021999,120]
[339232068,1727383843353,-500.0,0.00021999,120]
[339232069,1727383843364,-409.23853104,0.00021999,120]
[339232070,1727383843374,-500.0,0.00021999,120]
[339232071,1727383843383,-500.0,0.00021999,120]
[339232072,1727383843392,-500.0,0.00021999,120]
[339232073,1727383843401,-500.0,0.00021999,120]
[339232074,1727383843410,-500.0,0.00021999,120]
[339232075,1727383843419,-648.21850645,0.00021999,120]
[339232076,1727383843429,-500.0,0.00021999,120]
[339232077,1727383843439,-500.0,0.00021999,120]
[339232078,1727383843450,-500.0,0.00021999,120]
[339232079,1727383843458,-503.88229973,0.00021999,120]
[339232080,1727383843468,-366.25936454,0.00021999,120]
[339232081,1727383843477,-432.99709698,0.00021999,120]
[339232082,1727383843486,-500.0,0.00021999,120]
[339232083,1727383843496,-500.0,0.00021999,120]
[339232084,1727383843505,-500.0,0.00021999,120]
[339232085,1727383843514,-512.82402721,0.00021999,120]
[339232086,1727383843522,-500.0,0.00021999,120]
[339232087,1727383843531,-511.33747234,0.00021999,120]
[339232088,1727383843540,-500.0,0.00021999,120]
[339232089,1727383843549,-289.87317875,0.00021999,120]
[339232090,1727383843558,-500.0,0.00021999,120]
[339232091,1727383843567,-500.0,0.00021999,120]
[339232092,1727383843576,-500.0,0.00021999,120]
[339232093,1727383843585,-382.71284575,0.00021999,120]
[339232094,1727383843594,-1431.62,0.00021999,2]
[339232095,1727383843603,-2649.38,0.00021999,2]
[339232096,1727383843613,-1431.62,0.00021999,2]
[339232097,1727383843622,-2649.38,0.00021999,2]
[339232098,1727383843631,-1431.62,0.00021999,2]
[339232099,1727383843640,-2649.38,0.00021999,2]
[339232100,1727383843649,-1431.62,0.00021999,2]
[339232101,1727383843659,-2649.38,0.00021999,2]
[339232102,1727383843667,-1431.62,0.00021999,2]
[339232103,1727383843678,-2649.38,0.00021999,2]
[339232104,1727383843687,-1431.62,0.00021999,2]
[339232105,1727383843697,-2649.38,0.00021999,2]
[339232106,1727383843706,-1431.62,0.00021999,2]
[339232107,1727383843715,-2649.38,0.00021999,2]
[339232108,1727383843725,-1431.62,0.00021999,2]
[339232109,1727383843734,-2649.38,0.00021999,2]
[339232110,1727383843744,-1431.62,0.00021999,2]
[339232111,1727383843753,-2649.38,0.00021999,2]
[339232112,1727383843762,-1431.62,0.00021999,2]
[339232113,1727383843772,-1431.62,0.00021999,2]
[339232114,1727383843782,-2649.38,0.00021999,2]
[339232115,1727383843791,-1431.62,0.00021999,2]
[339232116,1727383843801,-2649.38,0.00021999,2]
[339232117,1727383843811,-1431.62,0.00021999,2]
[339232118,1727383843820,-2649.38,0.00021999,2]
[339232119,1727383843831,-1431.62,0.00021999,2]
[339232120,1727383843844,-2649.38,0.00021999,2]
[339232121,1727383843855,-1431.62,0.00021999,2]
[339232122,1727383843864,-2649.38,0.00021999,2]
[339232123,1727383843874,-2649.38,0.00021999,2]
[339232124,1727383843883,-1431.62,0.00021999,2]
[339232125,1727383843893,-1431.62,0.00021999,2]
[339232126,1727383843902,-2649.38,0.00021999,2]
[339232127,1727383843914,-2649.38,0.00021999,2]
[339232128,1727383844026,-500.0,0.00021999,120]
[339232129,1727383844036,-2649.38,0.00021999,2]
[339232130,1727383844045,-502.28114676,0.00021999,120]
[339232131,1727383844054,-1431.62,0.00021999,2]
[339232132,1727383844063,-506.73108886,0.00021999,120]
[339232133,1727383844072,-2649.38,0.00021999,2]
[339232134,1727383844081,-1431.62,0.00021999,2]
[339232135,1727383844091,-2649.38,0.00021999,2]
[339232136,1727383844100,-500.0,0.00021999,120]
[339232137,1727383844110,-1431.62,0.00021999,2]
[339232138,1727383844120,-2649.38,0.00021999,2]
[339232139,1727383844130,-500.0,0.00021999,120]
[339232140,1727383844140,-2649.38,0.00021999,2]
[339232141,1727383844150,-500.0,0.00021999,120]
[339232142,1727383844159,-2649.38,0.00021999,2]
[339232143,1727383844168,-1431.62,0.00021999,2]
[339232144,1727383844179,-2649.47560275,0.00021999,2]
[339232145,1727383844188,-500.0,0.00021999,120]
[339232146,1727383844199,-1431.62,0.00021999,2]
[339232147,1727383844209,-500.0,0.00021999,120]
[339232148,1727383844220,-1431.62,0.00021999,2]
[339232149,1727383844229,-500.0,0.00021999,120]
[339232150,1727383844238,-1431.82182079,0.00021999,2]
[339232151,1727383844249,-500.0,0.00021999,120]
[339232152,1727383844260,-500.0,0.00021999,120]
[339232153,1727383844269,-500.0,0.00021999,120]
[339232154,1727383844278,-453.96498218,0.00021999,120]
[339232155,1727383844288,-629.04013236,0.00021999,120]
[339232156,1727383844297,-500.0,0.00021999,120]
[339232157,1727383844307,-359.61,0.00021999,120]
[339232158,1727383844315,-504.01293509,0.00021999,120]
[339232159,1727383844325,-1654.15,0.00021999,30]
[339232160,1727383844336,-1654.15,0.00021999,30]
[339232161,1727383844345,-1654.15,0.00021999,30]
[339232162,1727383844357,-1654.15,0.00021999,30]
[339232163,1727383844367,-1654.15,0.00021999,30]
[339232164,1727383844376,-1654.15,0.00021999,30]
[339232165,1727383844385,-1654.15,0.00021999,30]
[339232166,1727383844395,-1654.15,0.00021999,30]
[339232167,1727383844404,-1654.15,0.00021999,30]
[339232168,1727383844413,-1654.15,0.00021999,30]
[339232169,1727383844423,-1654.15,0.00021999,30]
[339232170,1727383844434,-1654.15,0.00021999,30]
[339232171,1727383844443,-1654.15,0.00021999,30]
[339232172,1727383844452,-500.0,0.00021999,120]
[339232173,1727383844462,-1654.15,0.00021999,30]
[339232174,1727383844471,-1654.15,0.00021999,30]
[339232175,1727383844480,-1654.15,0.00021999,30]
[339232176,1727383844489,-1654.15,0.00021999,30]
[339232177,1727383844499,-1654.15,0.00021999,30]
[339232178,1727383844507,-1654.15,0.00021999,30]
[339232179,1727383844518,-1654.15,0.00021999,30]
[339232180,1727383844527,-1654.15,0.00021999,30]
[339232181,1727383844539,-1654.15,0.00021999,30]
[339232182,1727383844548,-1654.15,0.00021999,30]
[339232183,1727383844557,-1654.31861549,0.00021999,30]
[339232184,1727383844566,-501.79940572,0.00021999,120]
[339232185,1727383844575,-503.93265508,0.00021999,120]
[339232186,1727383844584,-504.84670358,0.00021999,120]
[339232187,1727383844594,-509.58042751,0.00021999,120]
[339232188,1727383844603,-500.0,0.00021999,7]
[339232189,1727383844614,-502.86604646,0.00021999,7]
[339232190,1727383844625,-503.24517051,0.00021999,120]
[339232191,1727383844635,-680.76,0.00021999,120]
[339232192,1727383844647,-680.76,0.00021999,120]
[339232193,1727383844657,-680.76,0.00021999,120]
[339232194,1727383844666,-680.76,0.00021999,120]
[339232195,1727383844676,-680.76,0.00021999,120]
[339232196,1727383844685,-680.76,0.00021999,120]
[339232197,1727383844694,-680.76,0.00021999,120]
[339232198,1727383844704,-680.76,0.00021999,120]
[339232199,1727383844714,-680.76,0.00021999,120]
[339232200,1727383844724,-680.76,0.00021999,120]
[339232201,1727383844735,-680.76,0.00021999,120]
[339232202,1727383844744,-680.76,0.00021999,120]
[339232203,1727383844754,-680.76,0.00021999,120]
[339232204,1727383844763,-680.76,0.00021999,120]
[339232205,1727383844772,-680.76,0.00021999,120]
[339232206,1727383844781,-680.76,0.00021999,120]
[339232207,1727383844790,-764.24,0.00021999,7]
[339232208,1727383844799,-680.76,0.00021999,120]
[339232209,1727383844809,-764.24,0.00021999,7]
[339232210,1727383844818,-680.76,0.00021999,120]
[339232211,1727383844829,-764.24,0.00021999,7]
[339232212,1727383844839,-680.76,0.00021999,120]
[339232213,1727383844849,-764.24,0.00021999,7]
[339232214,1727383844859,-680.76,0.00021999,120]
[339232215,1727383844868,-764.24,0.00021999,7]
[339232216,1727383844878,-680.76,0.00021999,120]
[339232217,1727383844888,-680.76,0.00021999,120]
[339232218,1727383844896,-764.24,0.00021999,7]
[339232219,1727383844908,-764.24,0.00021999,7]
[339232220,1727383844920,-680.76,0.00021999,120]
[339232221,1727383844932,-764.24,0.00021999,7]
[339232222,1727383844942,-680.9877086,0.00021999,120]
[339232223,1727383844953,-764.24,0.00021999,7]
[339232224,1727383844962,-764.24,0.00021999,7]
[339232225,1727383844971,-764.24,0.00021999,7]
[339232226,1727383844981,-764.24,0.00021999,7]
[339232227,1727383844991,-764.24,0.00021999,7]
[339232228,1727383845003,-764.24,0.00021999,7]
[339232229,1727383845012,-764.24,0.00021999,7]
[339232230,1727383845021,-764.24,0.00021999,7]
[339232231,1727383845032,-764.24,0.00021999,7]
[339232232,1727383845041,-764.24,0.00021999,7]
[339232233,1727383845050,-764.24,0.00021999,7]
[339232234,1727383845059,-764.24,0.00021999,7]
[339232235,1727383845067,-764.24,0.00021999,7]
[339232236,1727383845077,-764.24,0.00021999,7]
[339232237,1727383845086,-764.24,0.00021999,7]
[339232238,1727383845095,-764.46334504,0.00021999,7]
[339232239,1727383845104,-500.0,0.00021999,120]
[339232240,1727383845113,-500.0,0.00021999,120]
[339232241,1727383845122,-641.52490919,0.00021999,120]
[339232242,1727383845131,-507.44277202,0.00021999,120]
[339232243,1727383845141,-501.93254897,0.00021999,120]
[339232244,1727383845150,-500.0,0.00021999,120]
[339232245,1727383845159,-507.24361796,0.00021999,120]
[339232246,1727383845168,-500.0,0.00021999,120]
[339232247,1727383845178,-509.64918671,0.00021999,120]
[339232248,1727383845187,-500.0,0.00021999,120]
[339232249,1727383845196,-500.0,0.00021999,120]
[339232250,1727383845205,-151.0,0.00021999,7]
[339232251,1727383845214,-151.0,0.00021999,7]
[339232252,1727383845223,-504.15598698,0.00021999,120]
[339232253,1727383845232,-151.0,0.00021999,7]
[339232254,1727383845242,-151.0,0.00021999,7]
[339232255,1727383845251,-151.0,0.00021999,7]
[339232256,1727383845260,-151.0,0.00021999,7]
[339232257,1727383845270,-151.0,0.00021999,7]
[339232258,1727383845279,-151.0,0.00021999,7]
[339232259,1727383845288,-505.45652523,0.00021999,120]
[339232260,1727383845297,-151.0,0.00021999,7]
[339232261,1727383845306,-151.0,0.00021999,7]
[339232262,1727383845315,-151.0,0.00021999,7]
[339232263,1727383845324,-151.0,0.00021999,7]
[339232264,1727383845334,-151.0,0.00021999,7]
[339232265,1727383845343,-1000.0,0.00021999,2]
[339232266,1727383845353,-500.0,0.00021999,120]
[339232268,1727383845363,-151.0,0.00021999,7]
[339232269,1727383845372,-151.0,0.00021999,7]
[339232270,1727383845381,-1000.0,0.00021999,2]
[339232271,1727383845390,-500.0,0.00021999,120]
[339232272,1727383845399,-151.0,0.00021999,7]
[339232273,1727383845408,-172.527836,0.00021999,7]
[339232274,1727383845417,-1000.0,0.00021999,2]
[339232275,1727383845426,-406.31068931,0.00021999,120]
[339232276,1727383845437,-268.605728,0.00021999,7]
[339232277,1727383845447,-1000.0,0.00021999,2]
[339232278,1727383845457,-1000.0,0.00021999,2]
[339232279,1727383845466,-1000.0,0.00021999,2]
[339232280,1727383845475,-1000.0,0.00021999,2]
[339232281,1727383845485,-502.446925,0.00021999,2]
[339232282,1727383845494,-501.40429349,0.00021999,120]
[339232283,1727383845503,-500.0,0.00021999,120]
[339232284,1727383845513,-468.24505317,0.00021999,120]
[339232285,1727383845522,-502.79658034,0.00021999,120]
[339232286,1727383845531,-502.06917059,0.00021999,120]
[339232287,1727383845540,-501.45629944,0.00021999,120]
[339232288,1727383845550,-503.97492249,0.00021999,120]
[339232289,1727383845559,-339.84021882,0.00021999,5]
[339232291,1727383845568,-507.99662457,0.00021999,120]
[339232292,1727383845578,-500.0,0.00021999,120]
[339232293,1727383845587,-433.0437552,0.00021999,120]
[339232294,1727383845597,-500.0,0.00021999,120]
[339232295,1727383845607,-507.52923771,0.00021999,120]
[339232296,1727383845617,-500.0,0.00021999,120]
[339232297,1727383845628,-160.5107763,0.00021999,120]
[339232298,1727383845637,-500.0,0.00021999,120]
[339232299,1727383845648,-500.0,0.00021999,120]
[339232300,1727383845658,-424.23185369,0.00021999,120]
[339232301,1727383845667,-501.09977609,0.00021999,120]
[339232303,1727383845676,-503.46727178,0.00021999,120]
[339232304,1727383845686,-500.0,0.00021999,120]
[339232305,1727383845696,-502.90496196,0.00021999,120]
[339232306,1727383845705,-500.0,0.00021999,120]
[339232307,1727383845714,-500.0,0.00021999,120]
[339232308,1727383845724,-394.75,0.00021999,120]
[339232309,1727383845733,-500.0,0.00021999,120]
[339232310,1727383845742,-509.47306663,0.00021999,120]
[339232311,1727383845751,-500.0,0.00021999,120]
[339232312,1727383845761,-503.33782431,0.00021999,120]
[339232313,1727383845770,-500.0,0.00021999,120]
[339232314,1727383845779,-476.96277557,0.00021999,120]
[339232316,1727383845789,-496.01865832,0.00021999,120]
[339232317,1727383845799,-151.0,0.00021999,7]
[339232318,1727383845810,-500.0,0.00021999,120]
[339232319,1727383845820,-225.79366026,0.00021999,120]
[339232320,1727383845828,-151.0,0.00021999,7]
[339232321,1727383845840,-151.0,0.00021999,7]
[339232322,1727383845850,-500.0,0.00021999,120]
[339232323,1727383845859,-151.0,0.00021999,7]
[339232324,1727383845869,-289.389487,0.00021999,7]
[339232325,1727383845879,-500.0,0.00021999,120]
[339232326,1727383845890,-500.0,0.00021999,120]
[339232327,1727383845899,-500.95213592,0.00021999,120]
[339232328,1727383845912,-500.0,0.00021999,2]
[339232329,1727383845923,-500.0,0.00021999,2]
[339232330,1727383845934,-503.82445046,0.00021999,120]
[339232331,1727383845944,-500.0,0.00021999,2]
[339232332,1727383845953,-500.0,0.00021999,2]
[339232334,1727383845963,-500.0,0.00021999,2]
[339232336,1727383845972,-500.0,0.00021999,2]
[339232337,1727383845981,-315.32222032,0.00021999,2]
[339232338,1727383845991,-500.0,0.00021999,120]
[339232339,1727383846000,-513.21907142,0.00021999,120]
[339232340,1727383846009,-500.0,0.00021999,120]
[339232341,1727383846018,-504.58991093,0.00021999,120]
[339232342,1727383846028,-500.0,0.00021999,120]
[339232343,1727383846037,-500.0,0.00021999,120]
[339232344,1727383846047,-500.0,0.00021999,120]
[339232345,1727383846056,-500.0,0.00021999,120]
[339232346,1727383846066,-500.0,0.00021999,120]
[339232347,1727383846075,-500.0,0.00021999,120]
[339232348,1727383846085,-500.0,0.00021999,120]
[339232349,1727383846094,-208.28756696,0.00021999,120]
[339232350,1727383846103,-529.06867486,0.00021999,120]
[339232351,1727383846113,-151.0,0.00021999,2]